bitfinex-derivatives/quotes_SOLF0:USTF0_20241002
["timestamp","ask_amount","ask_price","bid_price","bid_amount"]
[1727832759485,2.7447,145.78,145.73,0.12502]
[1727832759866,2.7447,145.78,145.74,2.7452]
[1727832760266,2.7447,145.78,145.73,0.12502]
[1727832760466,2.7447,145.77,145.73,0.12502]
[1727832760775,18.28882354,145.8,145.74,2.7451]
[1727832760969,18.28882354,145.8,145.73,0.12502]
[1727832761582,2.7447,145.77,145.74,2.7452]
[1727832761777,2.7447,145.77,145.73,0.12502]
[1727832761979,18.28882354,145.8,145.73,0.12502]
[1727832762280,18.28882354,145.8,145.73,2.87042]
[1727832763482,18.28882354,145.8,145.73,0.12502]
[1727832763675,2.745,145.76,145.73,0.12502]
[1727832764783,2.745,145.76,145.73,2.87042]
[1727832766283,2.7447,145.77,145.73,2.87042]
[1727832766488,3.44882354,145.8,145.73,14.96502]
[1727832766787,2.7442,145.8,145.76,2.7448]
[1727832766976,3.40321997,145.79,145.76,2.7448]
[1727832767778,12.89321997,145.79,145.74,9.49]
[1727832767973,2.7447,145.77,145.74,2.7452]
[1727832768485,6.17205416,145.77,145.74,2.7452]
[1727832768680,2.7447,145.77,145.74,2.7452]
[1727832768884,2.7447,145.77,145.73,12.36032]
[1727832769282,6.18441117,145.77,145.73,12.36032]
[1727832769483,6.18441117,145.77,145.73,2.87032]
[1727832769784,3.43971117,145.77,145.73,0.12502]
[1727832770083,14.83,145.78,145.73,0.12502]
[1727832770276,2.7452,145.75,145.73,0.12502]
[1727832770478,3.46545494,145.74,145.73,0.12502]
[1727832771085,1.2841,145.77,145.73,0.12502]
[1727832771775,2.7452,145.75,145.73,0.12502]
[1727832771976,42.83,145.74,145.65,2.7468]
[1727832772173,14.83,145.71,145.62,14.83]
[1727832772387,2.7465,145.68,145.62,14.83]
[1727832772781,2.7465,145.68,145.64,2.747]
[1727832773186,1.3467,145.7,145.64,2.747]
[1727832773375,2.7466,145.67,145.64,2.747]
[1727832773987,1.3467,145.7,145.62,14.83]
[1727832773988,1.3467,145.7,145.66,2.7467]
[1727832774187,1.3467,145.7,145.62,16.1296]
[1727832774382,2.7464,145.68,145.62,16.1296]
[1727832774585,2.7464,145.68,145.64,2.747]
[1727832774786,1.3467,145.7,145.64,2.747]
[1727832776089,2.7466,145.67,145.63,2.7473]
[1727832776988,2.7464,145.68,145.63,2.7473]
[1727832777191,1.3467,145.7,145.63,2.7473]
[1727832777786,2.7467,145.67,145.63,2.7473]
[1727832778493,2.7467,145.67,145.64,2.747]
[1727832780687,1.3467,145.7,145.64,2.747]
[1727832780990,2.7468,145.66,145.63,2.7473]
[1727832782187,2.7472,145.64,145.61,2.87262]
[1727832782383,14.83,145.65,145.61,0.12502]
[1727832782785,6.10008854,145.64,145.61,0.12502]
[1727832783298,2.7474,145.63,145.61,0.12502]
[1727832785001,3.35288854,145.64,145.61,0.12502]
[1727832785293,2.7475,145.62,145.61,0.12502]
[1727832786091,6.14504729,145.62,145.61,0.12502]
[1727832786885,18.22754729,145.62,145.55,0.12502]
[1727832787287,18.22754729,145.62,145.57,2.7485]
[1727832787599,1.3832,145.63,145.55,0.12502]
[1727832788103,2.7477,145.61,145.58,2.7482]
[1727832788401,4.82417976,145.63,145.58,2.7482]
[1727832788697,4.82417976,145.63,145.55,0.12502]
[1727832788894,4.82417976,145.63,145.59,2.7479]
[1727832789094,6.18847976,145.63,145.59,2.7479]
[1727832789298,2.7475,145.63,145.59,2.7479]
[1727832789493,3.50867905,145.63,145.56,14.83]
[1727832789697,16.1578,145.64,145.56,14.83]
[1727832789901,2.7476,145.62,145.56,14.83]
[1727832790099,2.7476,145.62,145.55,0.12502]
[1727832790100,14.83,145.62,145.55,0.12502]
[1727832790404,2.7478,145.61,145.55,0.12502]
[1727832790601,2.7478,145.61,145.57,2.7483]
[1727832791393,14.83,145.62,145.57,2.7483]
[1727832791597,12.248,145.6,145.57,2.7483]
[1727832791799,9.5,145.6,145.55,0.12502]
[1727832791998,9.5,145.59,145.56,2.7486]
[1727832792300,9.5,145.6,145.55,0.12502]
[1727832792503,9.5,145.63,145.58,9.5]
[1727832792798,2.7476,145.62,145.58,9.5]
[1727832792999,4.83201159,145.64,145.58,9.5]
[1727832793199,3.50421159,145.64,145.59,9.5]
[1727832793501,9.5,145.64,145.59,9.5]
[1727832793700,3.48712806,145.63,145.59,9.5]
[1727832794090,9.5,145.64,145.59,12.2479]
[1727832794699,12.91862684,145.64,145.59,12.2479]
[1727832794901,12.91862684,145.64,145.59,2.7479]
[1727832795102,2.7475,145.62,145.59,2.7479]
[1727832796899,12.248,145.6,145.56,2.7485]
[1727832797097,9.5,145.6,145.55,9.62502]
[1727832797601,6.14314507,145.59,145.56,2.7485]
[1727832798207,2.7486,145.57,145.55,0.12502]
[1727832798503,9.5,145.58,145.55,0.12502]
[1727832798806,9.5,145.57,145.55,0.12502]
[1727832799301,2.7486,145.56,145.55,0.12502]
[1727832800105,15.70504826,145.57,145.55,0.12502]
[1727832800305,9.5,145.56,145.55,0.12502]
[1727832800604,12.2486,145.56,145.55,0.12502]
[1727832800805,9.5,145.56,145.55,0.12502]
[1727832801203,12.2486,145.56,145.55,0.12502]
[1727832802999,12.2486,145.56,145.47,4.0819]
[1727832803000,9.5,145.56,145.47,4.0819]
[1727832803208,2.7492,145.54,145.51,2.7494]
[1727832803407,1.3229,145.56,145.47,13.5819]
[1727832803408,1.3229,145.56,145.47,4.0819]
[1727832804714,9.5,145.52,145.47,13.5819]
[1727832805208,9.5,145.52,145.5,2.7498]
[1727832806216,2.749,145.55,145.51,2.7494]
[1727832806510,1.3229,145.56,145.51,2.7494]
[1727832806511,9.5,145.53,145.51,2.7494]
[1727832806711,1.3229,145.56,145.47,13.5819]
[1727832806712,9.5,145.52,145.47,13.5819]
[1727832806902,9.5,145.5,145.47,1.3361]
[1727832807409,9.5,145.51,145.47,10.8361]
[1727832808212,1.3229,145.56,145.49,9.62502]
[1727832808412,9.5,145.52,145.49,0.12502]
[1727832808608,9.5,145.53,145.49,0.12502]
[1727832809013,9.5,145.53,145.51,2.7495]
[1727832809208,9.5,145.55,145.5,9.5]
[1727832809415,9.5,145.53,145.49,9.62502]
[1727832809616,9.5,145.53,145.51,2.7495]
[1727832809812,9.5,145.53,145.49,9.62502]
[1727832810304,1.3229,145.56,145.49,9.62502]
[1727832810305,9.5,145.54,145.52,2.7492]
[1727832810506,9.5,145.53,145.49,9.62502]
[1727832810714,9.5,145.53,145.5,2.7497]
[1727832811715,9.5,145.53,145.49,9.62502]
[1727832811914,9.5,145.53,145.51,2.7496]
[1727832813006,9.5,145.53,145.52,2.7494]
[1727832813409,9.5,145.53,145.49,9.62502]
[1727832814434,9.5,145.53,145.51,2.7495]
[1727832815925,9.5,145.54,145.49,9.62502]
[1727832816132,9.5,145.54,145.52,2.7493]
[1727832816522,74.24,145.6,145.58,2.7481]
[1727832816721,83.74,145.6,145.58,2.7481]
[1727832816918,83.74,145.6,145.56,9.5]
[1727832817222,9.5,145.57,145.51,9.5]
[1727832817723,74.24,145.6,145.52,2.7494]
[1727832817724,9.5,145.54,145.52,2.7494]
[1727832818024,9.5,145.53,145.49,0.12502]
[1727832818220,12.98760729,145.53,145.5,2.7497]
[1727832818422,12.98760729,145.53,145.49,0.12502]
[1727832819323,12.98760729,145.53,145.5,2.7497]
[1727832819520,6.23690729,145.53,145.5,2.7497]
[1727832820524,2.7496,145.51,145.49,0.12502]
[1727832820729,17.5896,145.51,145.49,0.12502]
[1727832821028,19.70560729,145.53,145.49,0.12502]
[1727832821826,19.70560729,145.53,145.49,2.87492]
[1727832822530,2.7495,145.52,145.49,0.12502]
[1727832822728,19.70560729,145.53,145.49,0.12502]
[1727832823023,2.7498,145.5,145.49,0.12502]
[1727832825930,14.84,145.52,145.49,0.12502]
[1727832826134,9.00600729,145.53,145.49,0.12502]
[1727832826537,7.61490729,145.53,145.49,0.12502]
[1727832827032,7.61490729,145.53,145.5,2.7498]
[1727832827428,4.86560729,145.53,145.49,0.12502]
[1727832827635,2.7496,145.51,145.49,0.12502]
[1727832831430,2.7498,145.5,145.49,0.12502]
[1727832831725,21.07460729,145.53,145.49,0.12502]
[1727832832131,2.7497,145.51,145.49,0.12502]
[1727832835844,21.07460729,145.53,145.49,0.12502]
[1727832836139,2.7494,145.52,145.49,2.87482]
[1727832836338,21.07460729,145.53,145.49,0.12502]
[1727832836842,19.70560729,145.53,145.49,0.12502]
[1727832837340,3.48760729,145.53,145.49,0.12502]
[1727832837537,89.08,145.56,145.49,0.12502]
[1727832837741,2.7489,145.55,145.51,2.7494]
[1727832837934,89.08,145.56,145.49,14.96502]
[1727832837935,74.24,145.56,145.49,14.96502]
[1727832838439,74.24,145.56,145.53,2.749]
[1727832838743,74.24,145.56,145.49,14.96502]
[1727832838944,74.24,145.56,145.51,2.7494]
[1727832839141,183.29457285,145.7,145.5,2.6766]
[1727832839349,6.33396698,145.61,145.53,14.84]
[1727832839540,3.58616698,145.61,145.58,2.7481]
[1727832840236,6.33386698,145.61,145.57,2.7484]
[1727832840538,3.58616698,145.61,145.53,14.84]
[1727832841442,3.58616698,145.61,145.55,14.84]
[1727832841941,3.58616698,145.61,145.53,14.84]
[1727832842138,3.58616698,145.61,145.51,14.84]
[1727832842454,2.7484,145.58,145.51,14.84]
[1727832843340,2.7484,145.58,145.55,2.7488]
[1727832844738,2.7481,145.59,145.55,2.7488]
[1727832846336,14.84,145.6,145.51,14.84]
[1727832846337,3.58616698,145.61,145.56,2.7486]
[1727832846541,3.58616698,145.61,145.55,14.84]
[1727832846738,0.12502,145.61,145.55,14.84]
[1727832846948,0.12502,145.61,145.59,2.748]
[1727832847648,0.12502,145.61,145.55,14.84]
[1727832847844,2.87272,145.61,145.55,14.84]
[1727832848448,0.12502,145.61,145.55,14.84]
[1727832848845,0.12502,145.61,145.56,1.3847]
[1727832849048,0.12502,145.61,145.6,2.7479]
[1727832849645,0.12502,145.61,145.57,14.84]
[1727832849947,0.12502,145.61,145.56,2.6929]
[1727832850345,0.12502,145.61,145.59,2.7479]
[1727832851750,0.12502,145.61,145.6,2.7479]
[1727832853150,0.12502,145.61,145.56,2.6929]
[1727832853743,0.12502,145.61,145.57,2.7484]
[1727832854148,2.748,145.6,145.57,2.7484]
[1727832854748,14.96502,145.61,145.55,2.7487]
[1727832854950,14.84,145.59,145.55,2.7487]
[1727832855456,17.5882,145.59,145.55,2.7487]
[1727832856155,14.96502,145.61,145.51,16.1124]
[1727832856348,17.71282,145.61,145.51,16.1124]
[1727832856545,14.96502,145.61,145.51,16.1124]
[1727832856943,2.7481,145.59,145.56,2.7485]
[1727832857350,2.748,145.6,145.51,16.1124]
[1727832857556,0.12502,145.61,145.55,14.84]
[1727832858550,2.87272,145.61,145.58,2.7482]
[1727832862051,0.12502,145.61,145.53,14.84]
[1727832862257,0.12502,145.61,145.57,2.7484]
[1727832862258,2.748,145.6,145.57,2.7484]
[1727832863860,14.84,145.59,145.51,16.1124]
[1727832864054,2.7485,145.57,145.54,2.7489]
[1727832864255,14.84,145.59,145.51,1.2724]
[1727832864656,2.7487,145.56,145.53,2.7491]
[1727832864956,14.84,145.59,145.51,1.2724]
[1727832865156,2.7486,145.57,145.54,2.749]
[1727832867050,14.84,145.59,145.56,2.7485]
[1727832867051,2.7482,145.59,145.56,2.7485]
[1727832867251,14.84,145.6,145.56,2.7485]
[1727832867564,2.7491,145.54,145.5,2.7497]
[1727832867759,3.4730694,145.53,145.5,2.7497]
[1727832868365,6.2222694,145.53,145.5,2.7497]
[1727832869664,17.5891,145.54,145.5,2.7497]
[1727832869857,17.5891,145.54,145.51,2.7496]
[1727832870159,20.94979674,145.54,145.51,2.7496]
[1727832870553,18.20069674,145.54,145.49,0.12502]
[1727832870961,14.84,145.52,145.49,0.12502]
[1727832871157,2.7497,145.51,145.49,0.12502]
[1727832871864,21.03544302,145.52,145.49,2.87502]
[1727832874158,17.5895,145.52,145.49,2.87502]
[1727832874363,2.7493,145.53,145.5,2.7498]
[1727832874566,6.14208215,145.53,145.5,2.7498]
[1727832875357,6.14208215,145.53,145.49,0.12502]
[1727832875358,74.22,145.57,145.49,0.12502]
[1727832875559,74.22,145.57,145.5,16.2178]
[1727832875763,1.3179,145.58,145.5,16.2178]
[1727832875764,14.84,145.59,145.51,1.3407]
[1727832875964,1.3398,145.62,145.52,14.84]
[1727832876368,1.3398,145.62,145.54,14.84]
[1727832876870,1.3398,145.62,145.52,14.84]
[1727832877067,2.7481,145.59,145.54,2.7489]
[1727832877266,2.7481,145.59,145.52,14.84]
[1727832877673,2.7481,145.59,145.55,2.7487]
[1727832878065,2.7488,145.56,145.51,1.3407]
[1727832878269,14.84,145.59,145.52,2.7493]
[1727832878566,2.7488,145.56,145.52,2.7493]
[1727832878970,2.7488,145.56,145.53,2.7492]
[1727832880073,2.7488,145.56,145.51,1.3407]
[1727832880271,14.84,145.56,145.51,1.3407]
[1727832880470,3.4425909,145.55,145.49,1.42602]
[1727832880670,14.84,145.56,145.49,1.42602]
[1727832880866,14.84,145.56,145.49,0.12502]
[1727832881265,14.84,145.54,145.49,0.12502]
[1727832881778,2.7495,145.52,145.49,2.87492]
[1727832881975,3.51469764,145.53,145.49,0.12502]
[1727832883079,18.21340844,145.56,145.49,14.96502]
[1727832883279,14.84,145.56,145.49,14.96502]
[1727832883473,17.5888,145.56,145.51,2.7496]
[1727832883673,17.5888,145.56,145.49,14.96502]
[1727832883876,21.08424655,145.56,145.49,14.96502]
[1727832884968,18.33544655,145.56,145.49,14.96502]
[1727832885166,18.33544655,145.56,145.49,0.12502]
[1727832886073,2.749,145.54,145.49,0.12502]
[1727832886480,2.749,145.54,145.51,2.7495]
[1727832887080,18.33544655,145.56,145.49,0.12502]
[1727832887969,2.7488,145.55,145.52,2.7492]
[1727832888165,2.7488,145.55,145.49,0.12502]
[1727832888880,18.33544655,145.56,145.49,0.12502]
[1727832889084,21.08414655,145.56,145.53,2.749]
[1727832890176,2.7489,145.55,145.52,2.7493]
[1727832891773,2.7489,145.55,145.49,0.12502]
[1727832891774,18.33544655,145.56,145.49,0.12502]
[1727832892078,14.84,145.58,145.5,14.84]
[1727832892282,14.84,145.58,145.5,17.4046]
[1727832892482,17.5884,145.58,145.55,2.7487]
[1727832892682,14.84,145.58,145.5,17.4046]
[1727832892979,17.5884,145.58,145.55,2.7488]
[1727832893482,1.3392,145.59,145.5,17.4046]
[1727832893682,2.7484,145.58,145.5,17.4046]
[1727832894084,2.7484,145.58,145.55,2.7487]
[1727832894381,2.7484,145.58,145.5,17.4046]
[1727832895683,2.7484,145.58,145.55,2.7487]
[1727832896578,4.093,145.6,145.54,17.5889]
[1727832896783,0.12502,145.61,145.54,14.84]
[1727832896989,0.12502,145.61,145.56,14.84]
[1727832898786,0.12502,145.61,145.6,2.7479]
[1727832901486,1.3851,145.68,145.6,14.84]
[1727832901683,16.238,145.7,145.64,14.84]
[1727832901684,1.398,145.7,145.64,14.84]
[1727832902002,74.34502,145.73,145.66,17.5868]
[1727832902183,0.12502,145.73,145.66,14.84]
[1727832902487,0.12502,145.73,145.68,14.84]
[1727832902685,0.12502,145.73,145.7,2.7459]
[1727832902884,0.12502,145.73,145.66,14.84]
[1727832903081,2.7458,145.72,145.68,2.7462]
[1727832903385,14.96502,145.73,145.65,1.2711]
[1727832903594,14.96502,145.73,145.63,14.84]
[1727832903890,14.96502,145.73,145.61,14.96502]
[1727832903891,14.84,145.71,145.61,14.96502]
[1727832904281,2.7468,145.66,145.61,0.12502]
[1727832904490,14.84,145.69,145.61,0.12502]
[1727832904681,2.747,145.65,145.62,2.7475]
[1727832904877,2.747,145.65,145.61,0.12502]
[1727832905480,2.747,145.65,145.61,2.87272]
[1727832905687,2.7474,145.63,145.61,0.12502]
[1727832906389,14.84,145.65,145.61,0.12502]
[1727832906590,1.3624,145.66,145.62,2.7474]
[1727832906781,14.84,145.69,145.61,0.12502]
[1727832906987,2.7464,145.68,145.61,0.12502]
[1727832907182,1.3059,145.7,145.62,14.84]
[1727832908089,1.3059,145.7,145.64,14.84]
[1727832908393,74.2,145.71,145.67,2.7464]
[1727832908394,76.946,145.71,145.67,2.7464]
[1727832908591,74.2,145.71,145.67,2.7464]
[1727832908893,2.7462,145.7,145.66,2.7467]
[1727832909085,74.2,145.71,145.66,2.7467]
[1727832909281,2.7464,145.69,145.65,2.7468]
[1727832909489,89.04,145.71,145.65,2.7468]
[1727832909687,14.84,145.71,145.65,2.7468]
[1727832909883,2.7467,145.67,145.63,4.1415]
[1727832910282,2.7467,145.67,145.63,1.3942]
[1727832910486,1.3434,145.72,145.63,1.3942]
[1727832910487,14.84,145.71,145.63,1.3942]
[1727832910700,1.3434,145.72,145.63,1.3942]
[1727832911195,2.746,145.7,145.63,1.3942]
[1727832911493,1.3434,145.72,145.63,1.3942]
[1727832911687,2.746,145.7,145.66,2.7467]
[1727832912889,2.746,145.7,145.63,1.3942]
[1727832913092,2.7459,145.71,145.67,2.7464]
[1727832913588,2.7459,145.71,145.66,2.7467]
[1727832913793,2.746,145.7,145.63,1.3942]
[1727832913992,2.746,145.7,145.63,16.2342]
[1727832914797,2.746,145.7,145.66,2.7466]
[1727832916394,1.3434,145.72,145.63,16.2342]
[1727832916696,1.3434,145.72,145.68,2.7462]
[1727832917190,2.7458,145.71,145.68,2.7462]
[1727832917398,14.96502,145.73,145.64,18.25560828]
[1727832917593,14.96502,145.73,145.65,1.3229]
[1727832917799,2.7457,145.72,145.65,1.3229]
[1727832918095,14.96502,145.73,145.68,2.7462]
[1727832919291,14.96502,145.73,145.67,2.7465]
[1727832920389,2.7461,145.7,145.67,2.7465]
[1727832920793,0.12502,145.73,145.65,16.1629]
[1727832920996,2.87052,145.73,145.69,2.7461]
[1727832921990,2.87052,145.73,145.7,2.7459]
[1727832922190,2.7456,145.72,145.67,14.84]
[1727832922685,0.12502,145.73,145.65,16.1629]
[1727832922886,0.12502,145.73,145.63,1.3942]
[1727832922887,14.96502,145.73,145.63,16.2342]
[1727832923695,2.746,145.7,145.66,2.7466]
[1727832923897,14.96502,145.73,145.63,16.2342]
[1727832924994,2.746,145.71,145.67,2.7464]
[1727832925194,14.96502,145.73,145.67,2.7464]
[1727832925505,2.7459,145.71,145.63,16.2342]
[1727832926097,2.7459,145.71,145.67,2.7464]
[1727832926399,2.7457,145.72,145.65,14.84]
[1727832927105,2.7457,145.72,145.65,18.30207504]
[1727832927300,2.87052,145.73,145.69,2.746]
[1727832927805,2.7458,145.71,145.68,2.7463]
[1727832929896,0.12502,145.73,145.7,2.746]
[1727832930603,0.12502,145.73,145.69,2.7461]
[1727832931104,2.7457,145.72,145.69,2.7461]
[1727832932210,0.12502,145.73,145.67,14.84]
[1727832932403,0.12502,145.73,145.66,1.3798]
[1727832933315,2.7457,145.72,145.69,2.7461]
[1727832934712,0.12502,145.73,145.66,16.2198]
[1727832935208,0.12502,145.73,145.68,14.84]
[1727832935804,0.12502,145.73,145.72,2.7456]
[1727832937713,0.12502,145.73,145.68,14.84]
[1727832938010,0.12502,145.73,145.71,2.7458]
[1727832942318,0.12502,145.73,145.67,1.3144]
[1727832942613,2.7458,145.71,145.68,2.7462]
[1727832944216,0.12502,145.73,145.7,2.746]
[1727832945216,2.87052,145.73,145.7,2.746]
[1727832945817,0.12502,145.73,145.66,16.2198]
[1727832946015,2.7459,145.71,145.68,2.7464]
[1727832947714,14.96502,145.73,145.67,2.7466]
[1727832949013,2.7461,145.7,145.67,2.7466]
[1727832949610,2.7462,145.69,145.66,2.7467]
[1727832950119,2.7462,145.69,145.64,14.84]
[1727832950417,2.7464,145.68,145.64,14.84]
[1727832950613,1.3754,145.72,145.64,14.84]
[1727832950813,1.3754,145.72,145.66,2.7467]
[1727832952118,2.7463,145.69,145.66,2.7467]
[1727832952423,2.7463,145.69,145.64,14.84]
[1727832952424,14.84,145.71,145.63,1.3942]
[1727832952626,14.84,145.71,145.65,2.7469]
[1727832952919,14.84,145.71,145.63,1.3942]
[1727832953621,2.7463,145.69,145.63,1.3942]
[1727832954214,2.7463,145.69,145.66,2.7467]
[1727832957922,14.84,145.71,145.63,1.3942]
[1727832958114,1.3754,145.72,145.66,14.84]
[1727832958318,0.12502,145.73,145.66,14.84]
[1727832958516,0.12502,145.73,145.7,2.746]
[1727832958716,0.12502,145.73,145.69,14.84]
[1727832958922,0.12502,145.73,145.68,14.84]
[1727832959126,0.12502,145.73,145.69,2.7461]
[1727832959821,2.7457,145.72,145.69,2.7461]
[1727832960327,2.87052,145.73,145.69,2.7461]
[1727832960527,2.87052,145.73,145.67,1.3709]
[1727832960824,0.12502,145.73,145.67,1.3709]
[1727832961018,2.7457,145.72,145.67,1.3709]
[1727832961931,2.87052,145.73,145.67,1.3709]
[1727832962227,0.12502,145.73,145.7,14.84]
[1727832962427,0.12502,145.73,145.72,2.7456]
[1727832964428,0.12502,145.73,145.69,4.1004]
[1727832964623,0.12502,145.73,145.67,1.3709]
[1727832964624,2.7457,145.72,145.67,1.3709]
[1727832965128,14.84,145.7,145.63,2.62]
[1727832965427,0.12502,145.73,145.61,2.87262]
[1727832965627,14.84,145.67,145.61,0.12502]
[1727832965928,3.43919666,145.66,145.61,0.12502]
[1727832967036,6.18609666,145.66,145.62,2.7473]
[1727832967330,3.43919666,145.66,145.61,0.12502]
[1727832967535,2.7475,145.63,145.61,0.12502]
[1727832967723,14.84,145.65,145.61,0.12502]
[1727832967927,3.44846951,145.64,145.61,0.12502]
[1727832968739,6.19576951,145.64,145.61,0.12502]
[1727832970236,14.84,145.65,145.62,2.7474]
[1727832970421,14.84,145.65,145.61,0.12502]
[1727832971031,14.84,145.65,145.61,2.87262]
[1727832971032,17.587,145.65,145.61,2.87262]
[1727832971538,14.84,145.65,145.61,0.12502]
[1727832971935,2.7474,145.63,145.61,0.12502]
[1727832972143,14.84,145.65,145.61,0.12502]
[1727832972630,2.7472,145.64,145.61,0.12502]
[1727832972839,14.84,145.65,145.61,0.12502]
[1727832973232,2.7472,145.64,145.61,2.87272]
[1727832973932,14.84,145.65,145.61,0.12502]
[1727832974132,2.7475,145.62,145.61,0.12502]
[1727832974527,14.84,145.65,145.61,0.12502]
[1727832974729,2.7474,145.63,145.61,0.12502]
[1727832975340,2.7475,145.62,145.61,0.12502]
[1727832976939,2.7472,145.64,145.61,0.12502]
[1727832977133,3.43889606,145.66,145.61,2.87252]
[1727832977334,14.84,145.67,145.61,2.87252]
[1727832977545,2.747,145.65,145.61,2.87252]
[1727832977838,14.84,145.67,145.61,2.87252]
[1727832977839,14.84,145.67,145.62,2.7474]
[1727832978030,14.84,145.67,145.61,0.12502]
[1727832978237,18.33008442,145.67,145.61,0.12502]
[1727832978438,18.33008442,145.67,145.61,2.87272]
[1727832978946,18.33008442,145.67,145.61,0.12502]
[1727832979337,2.7469,145.66,145.62,2.7475]
[1727832979737,18.33008442,145.67,145.62,2.7475]
[1727832979937,18.33008442,145.67,145.61,0.12502]
[1727832980643,2.7469,145.66,145.61,0.12502]
[1727832980843,14.84,145.65,145.61,0.12502]
[1727832981444,18.34908922,145.65,145.61,0.12502]
[1727832981946,2.7473,145.64,145.61,0.12502]
[1727832982140,18.34908922,145.65,145.61,0.12502]
[1727832982342,3.50908922,145.65,145.61,0.12502]
[1727832982545,2.7471,145.65,145.61,2.87252]
[1727832982746,3.36182914,145.64,145.61,2.87252]
[1727832983143,3.36182914,145.64,145.61,0.12502]
[1727832983343,1.2807,145.68,145.61,0.12502]
[1727832983344,14.84,145.65,145.61,0.12502]
[1727832983548,18.34131842,145.67,145.61,0.12502]
[1727832983850,2.7471,145.65,145.61,2.87262]
[1727832984147,18.34131842,145.67,145.61,2.87262]
[1727832984350,2.7468,145.66,145.63,2.7473]
[1727832984548,16.1207,145.68,145.61,0.12502]
[1727832985149,22.3373307,145.68,145.64,2.747]
[1727832985645,14.84,145.72,145.62,14.84]
[1727832985950,3.47184807,145.71,145.64,14.84]
[1727832986349,6.21774807,145.71,145.66,2.7467]
[1727832986648,16.1967,145.74,145.66,14.84]
[1727832987849,2.7459,145.71,145.68,2.7464]
[1727832988445,2.7461,145.7,145.66,2.7466]
[1727832988856,3.50235479,145.71,145.65,1.3468]
[1727832989052,1.3567,145.74,145.64,2.747]
[1727832989053,2.7465,145.68,145.64,2.747]
[1727832989451,3.37942901,145.69,145.62,14.84]
[1727832989945,6.12572901,145.69,145.62,14.84]
[1727832990252,3.37942901,145.69,145.62,14.84]
[1727832990455,2.7464,145.68,145.64,2.747]
[1727832990849,3.37942901,145.69,145.61,0.12502]
[1727832990850,18.21942901,145.69,145.61,0.12502]
[1727832991053,14.84,145.67,145.61,0.12502]
[1727832991249,3.49475746,145.66,145.61,0.12502]
[1727832992355,14.84,145.67,145.61,0.12502]
[1727832992554,4.83041609,145.69,145.62,14.84]
[1727832992852,1.3731,145.69,145.62,14.84]
[1727832993058,2.7465,145.68,145.65,2.7469]
[1727832994256,4.1193,145.69,145.66,2.7467]
[1727832994465,1.44222,145.73,145.64,14.84]
[1727832994755,14.84,145.71,145.62,14.84]
[1727832994953,2.7464,145.69,145.65,2.7469]
[1727832995856,18.21910046,145.71,145.61,0.12502]
[1727832995857,2.7467,145.67,145.64,2.7471]
[1727832996053,14.84,145.7,145.61,0.12502]
[1727832996260,1.3038,145.69,145.61,0.12502]
[1727832996446,2.7469,145.66,145.61,0.12502]
[1727832996650,1.3038,145.69,145.61,0.12502]
[1727832997049,2.7465,145.68,145.64,2.747]
[1727832997358,2.7465,145.68,145.61,0.12502]
[1727832997556,1.3038,145.69,145.61,0.12502]
[1727832997962,2.7467,145.67,145.63,2.7472]